bitfinex/quotes_ETHUSD_20250726
["timestamp","ask_amount","ask_price","bid_price","bid_amount"]
[1753488002018,0.1344,3728.0,3727.8,0.4634]
[1753488002347,0.1344,3728.0,3727.8,0.9199]
[1753488002554,0.1344,3728.0,3727.9,0.4565]
[1753488003050,0.1344,3728.0,3727.9,0.9199]
[1753488005552,1.7104,3728.5,3727.9,0.9199]
[1753488005845,0.7822,3728.8,3728.0,0.9199]
[1753488006050,0.1344,3728.5,3728.1,1.4699]
[1753488006247,0.1344,3728.7,3728.5,0.55]
[1753488006450,0.1344,3728.7,3728.6,1.4699]
[1753488013558,0.1344,3728.7,3728.6,3.69537178]
[1753488013759,2.68139647,3729.4,3728.7,0.55]
[1753488013932,0.1344,3728.9,3728.6,0.55]
[1753488014138,0.1344,3728.9,3728.8,1.0134]
[1753488014969,0.1344,3728.9,3728.8,1.4699]
[1753488016158,0.7659,3729.7,3728.9,0.55]
[1753488016359,5.12495869,3730.1,3728.6,6.88190941]
[1753488016360,2.68175601,3728.9,3728.7,0.55]
[1753488016678,3.58200289,3729.0,3728.7,0.55]
[1753488017576,0.9003,3729.0,3728.7,0.55]
[1753488017871,3.58199912,3729.0,3728.7,0.55]
[1753488019082,3.58199912,3729.0,3728.7,1.0134]
[1753488019388,0.1344,3729.0,3728.7,1.0134]
[1753488019590,0.1344,3729.0,3728.8,0.98474]
[1753488019799,0.1344,3729.0,3728.8,0.4634]
[1753488021163,0.1344,3729.0,3728.9,0.4547]
[1753488021877,0.1344,3729.0,3728.9,0.9241]
[1753488022390,2.81608409,3729.0,3728.9,0.4547]
[1753488022869,0.1344,3729.0,3728.9,0.4547]
[1753488023889,2.81611123,3729.0,3728.7,0.55]
[1753488024116,2.68182375,3728.9,3728.5,0.55]
[1753488024387,2.81635321,3728.7,3728.5,0.55]
[1753488024590,2.68197178,3728.6,3728.5,0.55]
[1753488025203,2.68197178,3728.6,3728.4,0.55]
[1753488025693,2.68197178,3728.6,3728.4,1.0047]
[1753488025998,2.81630265,3728.7,3728.4,1.0047]
[1753488026159,2.81630265,3728.7,3728.4,2.11831563]
[1753488026351,2.81630265,3728.7,3728.5,0.4547]
[1753488026756,0.1344,3728.7,3728.5,0.4547]
[1753488026968,2.8163451,3728.7,3728.5,0.4547]
[1753488027391,2.68197178,3728.6,3728.5,0.4547]
[1753488027982,2.68197178,3728.6,3728.4,0.55]
[1753488028353,2.68197178,3728.6,3728.4,1.0047]
[1753488029895,2.68204371,3728.5,3728.4,0.55]
[1753488030093,2.68225333,3728.3,3728.2,0.55]
[1753488030283,2.68214428,3728.4,3728.2,0.55]
[1753488030591,2.68218759,3728.3,3728.2,0.55]
[1753488030774,2.68218759,3728.3,3728.2,1.0047]
[1753488031181,2.68218759,3728.3,3728.2,0.55]
[1753488031673,2.68225953,3728.2,3728.1,4.2]
[1753488031878,2.68259109,3727.8,3727.5,6.644]
[1753488032097,2.68259109,3727.8,3727.6,0.4547]
[1753488032398,2.68259109,3727.8,3727.7,0.55]
[1753488032881,2.68254734,3727.8,3727.7,0.55]
[1753488033486,2.68250514,3727.9,3727.7,0.55]
[1753488033685,2.68254734,3727.8,3727.7,0.55]
[1753488033996,2.68249648,3727.9,3727.7,1.0047]
[1753488034367,2.68254734,3727.8,3727.7,0.55]
[1753488034698,2.68250137,3727.9,3727.7,1.0047]
[1753488037419,3.61984734,3727.8,3727.7,0.55]
[1753488037779,3.13164734,3727.8,3727.7,0.55]
[1753488037979,3.13164734,3727.8,3727.4,4.3344]
[1753488037980,5.1265548,3727.8,3727.5,0.55]
[1753488038178,5.12654734,3727.8,3727.7,0.4547]
[1753488038400,5.12654734,3727.8,3727.5,1.0194]
[1753488038703,5.12654734,3727.8,3727.7,0.55]
[1753488039681,2.444,3727.8,3727.7,0.55]
[1753488040087,5.12654734,3727.8,3727.7,0.55]
[1753488041009,2.68276324,3727.5,3727.4,4.2]
[1753488041213,2.81716324,3727.5,3727.4,4.2]
[1753488041789,2.68287732,3727.4,3727.3,0.55]
[1753488042190,2.68287732,3727.4,3727.3,1.0047]
[1753488043215,0.1344,3727.5,3727.3,1.0047]
[1753488043413,2.68283522,3727.4,3727.3,1.0047]
[1753488043983,2.5784,3727.5,3727.0,0.4694]
[1753488043984,2.6829273,3727.3,3727.0,0.4694]
[1753488044183,2.6829273,3727.3,3727.1,0.55]
[1753488044379,2.68297918,3727.2,3727.0,0.55]
[1753488044710,2.68297918,3727.2,3726.6,0.7811]
[1753488044711,3.49382315,3727.0,3726.2,0.4694]
[1753488044919,3.49385833,3727.0,3726.2,0.4694]
[1753488045078,2.68319514,3726.9,3726.3,0.4547]
[1753488045285,5.12826714,3726.8,3726.4,0.4694]
[1753488045479,5.12826714,3726.8,3726.5,0.55]
[1753488045480,2.68334116,3726.7,3726.5,0.55]
[1753488045681,2.68334116,3726.7,3726.6,0.55]
[1753488045907,2.68333914,3726.7,3726.6,1.4741]
[1753488046217,2.68333914,3726.7,3726.6,1.0047]
[1753488046383,5.12827576,3726.8,3726.6,1.0047]
[1753488046714,2.446,3726.7,3726.6,1.4741]
[1753488047291,2.68320227,3726.9,3726.6,1.4741]
[1753488047490,2.445,3726.8,3726.6,0.55]
[1753488047706,2.445,3726.8,3726.7,1.4741]
[1753488048488,2.445,3726.8,3726.7,0.55]
[1753488048489,5.12826714,3726.8,3726.7,0.55]
[1753488048986,6.84670706,3726.8,3726.7,0.55]
[1753488049181,4.40170706,3726.8,3726.7,0.55]
[1753488049401,6.84670706,3726.8,3726.7,0.55]
[1753488049817,2.68343444,3726.6,3726.3,0.4547]
[1753488050018,2.445,3726.5,3726.4,0.55]
[1753488050406,2.445,3726.5,3726.4,1.013]
[1753488050832,2.445,3726.5,3726.4,1.4652]
[1753488051310,2.445,3726.5,3726.4,1.77277678]
[1753488051509,2.445,3726.7,3726.4,1.77277678]
[1753488051711,2.445,3726.7,3726.4,0.85757678]
[1753488051899,2.445,3726.7,3726.6,0.55]
[1753488052109,5.12833914,3726.7,3726.6,1.4652]
[1753488052622,2.445,3726.7,3726.6,1.4652]
[1753488052812,5.12833914,3726.7,3726.6,1.4652]
[1753488052998,5.12833914,3726.7,3726.6,1.013]
[1753488053337,5.12833914,3726.7,3726.6,0.55]
[1753488054723,2.68345915,3726.6,3726.1,1.013]
[1753488054925,2.68361268,3726.4,3726.2,0.463]
[1753488055292,2.68361268,3726.4,3726.0,0.9512005]
[1753488055293,0.1344,3726.5,3726.3,0.463]
[1753488055601,2.445,3726.4,3726.3,0.9152]
[1753488055789,5.12855517,3726.4,3726.3,0.463]
[1753488056492,2.68362719,3726.3,3726.1,0.463]
[1753488056803,2.68362719,3726.3,3726.2,1.013]
[1753488057231,5.2629816,3726.4,3726.3,0.55]
[1753488057454,5.2629816,3726.4,3726.2,0.55]
[1753488057643,5.2629816,3726.4,3726.1,1.0022]
[1753488057644,5.26295517,3726.4,3726.3,0.463]
[1753488058414,5.26295517,3726.4,3726.0,0.9512005]
[1753488058415,2.68369921,3726.2,3726.0,0.55]
[1753488058618,5.12983422,3726.1,3726.0,0.55]
[1753488058817,2.68384326,3726.0,3725.9,4.2]
[1753488059050,2.446,3726.1,3725.4,0.7845]
[1753488059051,2.68408654,3725.7,3725.4,0.7845]
[1753488059352,2.446,3725.6,3725.5,0.463]
[1753488059549,2.446,3725.6,3725.5,0.66273124]
[1753488059716,2.446,3725.6,3725.5,1.013]
[1753488059918,5.13013141,3725.6,3725.5,0.55]
[1753488060153,2.446,3725.6,3725.3,4.613]
[1753488060356,5.13015615,3725.6,3725.3,4.2844]
[1753488060528,2.68427551,3725.4,3725.3,4.613]
[1753488060728,5.13027551,3725.4,3725.3,0.463]
[1753488061058,5.13028948,3725.4,3725.0,0.1344]
[1753488061261,2.446,3725.3,3725.1,0.463]
[1753488061570,2.446,3725.2,3724.3,4.15]
[1753488061860,2.446,3725.2,3724.6,0.1344]
[1753488061861,2.68465353,3724.9,3724.6,0.1344]
[1753488062158,5.13171878,3724.8,3724.6,0.5974]
[1753488062357,2.447,3724.7,3724.6,0.5974]
[1753488062558,2.447,3724.7,3724.6,0.6844]
[1753488063147,2.447,3724.7,3724.6,1.5996]
[1753488063468,5.13177998,3724.7,3724.6,1.5996]
[1753488063672,2.447,3724.7,3724.6,1.5996]
[1753488064532,5.13177998,3724.7,3724.6,1.5996]
[1753488064764,2.447,3724.7,3724.6,1.5996]
[1753488065468,2.68472468,3724.8,3724.7,0.55]
[1753488065637,5.1317079,3724.8,3724.7,0.55]
[1753488065969,0.1344,3725.2,3724.7,1.4652]
[1753488066284,2.446,3725.2,3724.9,1.32]
[1753488066433,2.446,3725.2,3725.1,0.55]
[1753488066434,5.13041962,3725.2,3725.1,0.55]
[1753488066835,2.68456375,3725.0,3724.9,0.1344]
[1753488067867,2.68451747,3725.1,3725.0,0.55]
[1753488069333,2.68451747,3725.1,3725.0,1.013]
[1753488070679,2.68451747,3725.1,3725.0,0.55]
[1753488070968,2.6847079,3724.8,3724.7,1.4652]
[1753488071170,5.1317079,3724.8,3724.7,1.013]
[1753488071670,5.1317079,3724.8,3724.7,0.55]
[1753488073644,5.1317079,3724.8,3724.0,0.7903]
[1753488073849,2.68511636,3724.3,3724.2,0.1344]
[1753488074156,2.68493609,3724.5,3724.4,0.55]
[1753488074357,5.13293609,3724.5,3724.4,0.55]
[1753488074559,5.13293609,3724.5,3724.4,1.4652]
[1753488076472,2.68493609,3724.5,3724.4,1.4652]
[1753488076675,2.447,3724.5,3724.4,1.72543245]
[1753488076973,2.447,3724.5,3724.4,1.85983245]
[1753488077171,2.447,3724.5,3724.4,6.00983245]
[1753488077380,2.447,3724.5,3724.4,8.69482869]
[1753488078238,2.447,3724.5,3724.4,6.00983245]
[1753488078670,2.447,3724.5,3724.4,8.69482869]
[1753488078877,2.447,3724.5,3724.4,6.00983245]
[1753488081064,5.13192415,3724.5,3724.4,4.8344]
[1753488081367,5.13192415,3724.5,3724.4,4.7]
[1753488083075,5.13192415,3724.5,3724.4,0.55]
[1753488084463,2.447,3724.5,3724.4,0.55]
[1753488084772,5.13192415,3724.5,3724.4,0.55]
[1753488085977,6.84332415,3724.5,3724.4,0.55]
[1753488087483,5.94792415,3724.5,3724.4,0.55]
[1753488089047,5.13192415,3724.5,3724.4,0.55]
[1753488091385,3.44002316,3724.7,3724.4,0.55]
[1753488091686,2.447,3724.6,3724.5,3.26177339]
[1753488091885,1.0063934,3725.8,3725.0,0.55]
[1753488092071,0.1344,3725.6,3725.2,0.55]
[1753488092264,5.13110611,3725.7,3725.4,0.55]
[1753488092578,0.8896,3725.8,3725.4,0.55]
[1753488092579,0.1344,3725.8,3725.6,0.55]
[1753488092787,2.447,3725.7,3725.6,0.55]
[1753488092947,2.447,3725.7,3725.6,0.4708]
[1753488093489,2.447,3725.7,3725.6,1.5073]
[1753488093783,2.81838892,3725.8,3725.6,1.5073]
[1753488093984,5.13105937,3725.7,3725.6,1.5073]
[1753488094189,5.13105937,3725.7,3725.6,0.55]
[1753488094385,5.13105937,3725.7,3724.9,0.4865]
[1753488094386,4.13734343,3725.7,3724.9,0.4865]
[1753488094552,2.68428811,3725.4,3725.1,0.1344]
[1753488094882,2.68441962,3725.2,3725.1,0.1344]
[1753488095045,3.3414,3725.3,3724.8,0.55]
[1753488095250,2.68462463,3725.0,3724.8,0.55]
[1753488095453,5.13163582,3724.9,3724.8,0.55]
[1753488095747,2.68473244,3724.8,3724.7,0.74815083]
[1753488096073,2.6847079,3724.8,3724.2,0.9573]
[1753488096276,2.447,3724.7,3724.2,1.0917]
[1753488096489,2.68493377,3724.5,3724.3,0.55]
[1753488096656,2.447,3724.4,3724.3,0.55]
[1753488097579,2.447,3724.4,3724.3,2.2948]
[1753488098176,2.447,3724.4,3724.3,0.55]
[1753488098583,2.447,3724.4,3724.3,1.0365]
[1753488100185,2.6847831,3724.7,3724.3,1.0365]
[1753488100492,2.447,3724.6,3724.3,1.0365]
[1753488101067,2.447,3724.6,3724.5,0.55]
[1753488101473,2.68478844,3724.7,3724.5,0.55]
[1753488101663,2.447,3724.6,3724.5,0.55]
[1753488103390,2.446,3724.6,3724.5,0.55]
[1753488106767,4.1291,3724.6,3724.3,0.55]
[1753488107097,2.68492415,3724.5,3724.3,0.55]
[1753488107392,2.68499624,3724.4,3724.1,0.1344]
[1753488107605,2.446,3724.3,3724.1,0.55]
[1753488108272,3.58056127,3724.2,3724.1,0.55]
[1753488108471,2.68521253,3724.1,3724.0,0.55]
[1753488109378,5.13121253,3724.1,3724.0,0.55]
[1753488109784,5.56051253,3724.1,3724.0,0.55]
[1753488109986,5.13121253,3724.1,3724.0,0.55]
[1753488110937,2.446,3724.1,3724.0,0.55]
[1753488111071,2.446,3724.1,3723.9,0.55]
[1753488111271,5.13123086,3724.1,3723.9,1.0452]
[1753488111711,5.13123086,3724.1,3723.9,0.55]
[1753488111712,2.68528464,3724.0,3723.9,0.55]
[1753488113314,5.13123366,3724.1,3723.9,0.55]
[1753488114003,2.68533508,3724.0,3723.8,0.55]
[1753488114318,5.13235674,3723.9,3723.8,0.55]
[1753488116024,2.447,3723.9,3723.8,0.55]
[1753488116306,2.447,3723.9,3723.8,1.0452]
[1753488116512,5.13235674,3723.9,3723.8,1.0452]
[1753488117316,5.13235674,3723.9,3723.8,1.4961]
[1753488117812,5.13235674,3723.9,3723.8,1.0452]
[1753488118187,5.13235674,3723.9,3723.8,0.55]
[1753488118387,5.91085674,3723.9,3723.7,0.55]
[1753488118697,2.68587879,3723.2,3722.8,1.2759]
[1753488118909,3.12092886,3723.8,3722.9,0.6296]
[1753488118910,2.447,3723.1,3722.9,0.6296]
[1753488119230,5.13293376,3723.1,3723.0,0.4952]
[1753488119523,2.6860059,3723.0,3722.9,0.4952]
[1753488119816,2.6860059,3723.0,3722.9,1.24740439]
[1753488120319,2.6860059,3723.0,3722.9,0.75220439]
[1753488121504,2.6860059,3723.0,3722.9,0.55]
[1753488122127,3.57020384,3723.0,3722.9,0.55]
[1753488122310,2.6861502,3722.8,3722.6,0.4952]
[1753488122627,2.447,3722.7,3722.6,1.0452]
[1753488122803,5.13322236,3722.7,3722.6,1.0452]
[1753488123141,2.447,3722.7,3722.6,1.0452]
[1753488123292,2.397,3722.7,3722.6,1.0452]
[1753488123912,2.397,3722.7,3722.6,1.4961]
[1753488124727,2.397,3722.7,3722.6,1.0452]
[1753488126041,2.397,3722.7,3722.6,1.4961]
[1753488126404,5.08322236,3722.7,3722.6,1.0452]
[1753488126601,5.08322236,3722.7,3722.6,0.55]
[1753488127904,2.397,3722.7,3722.6,0.55]
[1753488128322,5.08322236,3722.7,3722.6,0.55]
[1753488128719,2.397,3722.7,3722.6,0.55]
[1753488130040,2.397,3722.7,3722.6,1.0452]
[1753488133262,2.6861269,3722.9,3722.7,0.55]
[1753488133463,2.447,3722.8,3722.7,0.55]
[1753488133673,5.1331502,3722.8,3722.7,1.0452]
[1753488133971,5.1331502,3722.8,3722.4,0.1344]
[1753488133972,5.1331502,3722.8,3722.5,1.0452]
[1753488134167,5.1331502,3722.8,3722.5,0.55]
[1753488134384,2.447,3722.8,3722.7,0.55]
[1753488136145,2.447,3722.8,3722.3,6.83651069]
[1753488136146,4.91504502,3722.8,3722.3,4.6452]
[1753488136346,2.447,3722.7,3722.4,0.4952]
[1753488136553,2.68633845,3722.6,3722.5,0.4952]
[1753488136955,2.68633845,3722.6,3722.1,0.55]
[1753488137156,2.447,3722.5,3722.3,0.55]
[1753488137356,5.1333721,3722.5,3722.3,0.55]
[1753488137561,2.68643885,3722.4,3722.1,1.0452]
[1753488137770,2.447,3722.3,3722.2,1.0452]
[1753488139260,2.447,3722.3,3722.2,1.4961]
[1753488140766,2.68636853,3722.5,3722.3,0.55]
[1753488140950,2.447,3722.4,3722.3,1.0389]
[1753488143510,2.68629317,3722.7,3722.4,0.55]
[1753488143693,5.13329902,3722.6,3722.4,1.0389]
[1753488144700,2.447,3722.6,3722.2,0.55]
[1753488144853,2.686409,3722.5,3722.2,1.0389]
[1753488145051,2.447,3722.4,3722.2,1.0389]
[1753488145758,3.1786256,3722.7,3722.2,1.0389]
[1753488145759,2.68636614,3722.6,3722.2,1.0389]
[1753488145963,2.447,3722.5,3722.2,1.0389]
[1753488146174,5.2677719,3722.5,3722.2,1.0389]
[1753488147258,2.5814,3722.5,3722.2,1.0389]
[1753488147449,2.5814,3722.5,3722.4,0.55]
[1753488147677,2.5814,3722.5,3722.4,1.5085]
[1753488147876,0.1344,3722.8,3722.4,1.5085]
[1753488148077,2.447,3722.7,3722.4,0.55]
[1753488148383,0.1344,3722.8,3722.6,0.55]
[1753488148580,2.447,3722.7,3722.6,0.55]
[1753488148880,2.447,3722.7,3722.6,1.0389]
[1753488149882,5.13322236,3722.7,3722.6,0.55]
[1753488150872,6.06922236,3722.7,3722.6,0.55]
[1753488151186,2.68651102,3722.3,3722.2,4.7]
[1753488151366,5.13351102,3722.3,3722.2,4.7]
[1753488151687,5.57711102,3722.3,3722.2,4.7]
[1753488151979,5.13351102,3722.3,3722.2,4.7]
[1753488152487,5.13351102,3722.3,3722.2,0.55]
[1753488152695,2.447,3722.3,3722.2,0.55]
[1753488153394,2.82079568,3722.5,3722.3,0.55]
[1753488153601,2.447,3722.4,3722.3,0.55]
[1753488154294,2.447,3722.4,3722.3,1.5085]
[1753488155265,2.447,3722.4,3722.3,1.0389]
[1753488155598,2.447,3722.4,3722.3,1.5085]
[1753488156155,2.447,3722.4,3722.3,1.0389]
[1753488156354,2.447,3722.4,3722.3,1.5085]
[1753488156591,2.447,3722.4,3722.3,4.19501102]
[1753488156802,2.447,3722.4,3722.3,4.97922242]
[1753488157487,0.1344,3722.8,3722.3,4.97922242]
[1753488157691,2.447,3722.6,3722.5,0.55]
[1753488157993,2.447,3722.6,3722.5,1.5085]
[1753488158355,0.1344,3722.8,3722.5,1.5085]
[1753488158691,2.447,3722.7,3722.6,1.0389]
[1753488160268,2.447,3722.7,3722.6,0.55]
[1753488163388,2.5814,3722.8,3722.5,1.0389]
[1753488165995,5.26755441,3722.8,3722.5,1.0389]
[1753488166299,2.5814,3722.8,3722.5,1.0389]
[1753488166463,0.1344,3722.8,3722.5,1.0389]
[1753488166666,2.447,3722.7,3722.5,1.0389]
[1753488167510,3.0,3723.5,3722.5,1.0389]
[1753488167511,0.7619,3723.8,3723.1,0.55]
[1753488167711,0.1344,3723.5,3723.3,0.55]
[1753488168012,2.447,3723.4,3723.3,0.55]
[1753488168157,3.44735588,3723.8,3723.2,2.68585753]
[1753488168158,0.7619,3723.8,3723.5,0.55]
[1753488168361,2.447,3723.7,3723.6,1.0196]
[1753488168627,6.55423614,3724.1,3723.7,0.55]
[1753488168628,3.869,3724.1,3723.7,0.55]
[1753488168808,2.5814,3724.0,3723.7,0.55]
[1753488169002,2.5814,3724.0,3723.9,0.55]
[1753488169310,2.447,3724.0,3723.9,1.0389]
[1753488170220,2.447,3724.0,3723.9,0.55]
[1753488171070,2.447,3724.0,3723.9,0.4943]
[1753488171370,3.869,3724.1,3723.9,0.4943]
[1753488171590,2.447,3724.0,3723.9,0.4943]
[1753488172108,2.447,3724.0,3723.9,1.4838]
[1753488172486,3.869,3724.1,3724.0,0.55]
[1753488172795,6.316,3724.1,3723.9,0.4943]
[1753488173091,6.316,3724.1,3723.7,0.6287]
[1753488173092,2.68526791,3724.1,3723.7,0.6287]
[1753488173298,2.447,3724.0,3723.7,0.6287]
[1753488175082,5.13226791,3724.1,3723.7,0.6287]
[1753488175591,2.68528817,3724.0,3723.7,0.6287]
[1753488175792,5.13223025,3724.1,3723.7,0.6287]
[1753488176302,2.68529895,3724.0,3723.7,0.1344]
[1753488176507,2.68529895,3724.0,3723.9,0.55]
[1753488176801,3.47130098,3723.7,3721.9,0.19771478]
[1753488177000,2.68536062,3723.9,3719.9,0.14024256]
[1753488177001,0.7858,3722.8,3722.0,4.0]
[1753488177300,0.7858,3722.8,3721.7,0.4943]
[1753488177301,0.1344,3722.0,3721.7,0.4943]
[1753488177464,3.2458,3721.9,3721.5,0.1344]
[1753488177669,2.68687194,3721.8,3721.0,0.20554928]
[1753488177902,2.68695583,3721.7,3721.2,3.0]
[1753488178105,2.461,3721.6,3721.3,0.9338]
[1753488178307,2.461,3721.6,3721.3,0.4395]
[1753488178471,2.461,3721.6,3721.4,0.4943]
[1753488179007,2.461,3721.6,3721.3,0.4395]
[1753488179302,2.461,3721.6,3721.4,0.4943]
[1753488179499,2.461,3721.6,3721.2,0.4943]
[1753488179700,5.14803061,3721.6,3721.1,0.55]
[1753488179900,2.461,3721.6,3721.3,0.4943]
[1753488180198,0.7858,3721.9,3721.4,0.55]
[1753488180408,2.461,3721.8,3721.4,0.55]
[1753488180792,2.461,3721.8,3720.7,0.4943]
[1753488180793,2.68722306,3721.4,3720.7,0.4943]
[1753488181004,5.15222306,3721.4,3720.7,0.4943]
[1753488181235,2.68725325,3721.3,3720.7,0.4943]
[1753488181542,2.9505,3721.4,3720.7,3.18195016]
[1753488181699,2.9505,3721.4,3720.8,2.68759311]
[1753488181903,2.9505,3721.4,3720.9,2.68751918]
[1753488182105,3.4165,3721.4,3720.8,2.6875411]
[1753488182528,3.4165,3721.4,3720.9,0.55]
[1753488183034,3.4165,3721.4,3720.9,3.23751916]
[1753488183226,3.4165,3721.4,3720.8,0.55]
[1753488183423,0.68851146,3721.8,3720.8,1.0443]
[1753488183735,0.9515,3721.7,3721.1,2.68733158]
[1753488183944,6.10245376,3721.7,3721.1,0.4943]
[1753488184242,6.10245376,3721.7,3721.1,3.18167158]
[1753488184611,2.68702457,3721.6,3721.1,0.4943]
[1753488185015,0.9515,3721.5,3721.0,0.55]
[1753488185344,0.9515,3721.4,3720.9,0.55]
[1753488185543,2.463,3721.3,3720.9,0.55]
[1753488185917,2.929,3721.3,3720.9,0.55]
[1753488186119,3.4145,3721.3,3720.9,0.55]
[1753488187306,6.10173963,3721.3,3720.9,0.55]
[1753488187540,5.75063963,3721.3,3720.9,0.55]
[1753488187742,2.68738221,3721.1,3720.8,0.55]
[1753488188041,1.777,3721.2,3720.8,0.55]
[1753488188248,1.0859,3721.1,3720.8,0.55]
[1753488188541,3.77329094,3721.1,3720.8,0.55]
[1753488189247,1.0859,3721.1,3720.7,0.55]
[1753488189441,0.6004,3721.1,3720.7,1.0443]
[1753488189644,0.1344,3721.1,3720.8,0.55]
[1753488189847,2.82177811,3721.1,3720.8,0.55]
[1753488190344,2.82177811,3721.1,3720.6,0.1344]
[1753488190345,0.9515,3721.0,3720.7,0.55]
[1753488190542,0.1344,3721.1,3720.7,0.55]
[1753488190847,0.1344,3721.1,3720.7,1.0443]
[1753488191826,1.0859,3721.1,3720.7,1.0443]
[1753488192042,3.77333664,3721.1,3720.7,0.55]
[1753488192707,1.0859,3721.1,3720.7,0.55]
[1753488193046,0.1344,3721.1,3720.7,1.0443]
[1753488193246,2.82178514,3721.1,3720.7,1.0443]
[1753488193411,2.82178514,3721.1,3720.8,0.4943]
[1753488193743,0.1344,3721.1,3720.8,0.4943]
[1753488194750,2.461,3721.5,3721.0,0.55]
[1753488194932,0.1344,3721.2,3721.0,0.55]
[1753488195243,0.1344,3721.2,3721.1,0.55]
[1753488195244,2.82170517,3721.2,3721.1,0.55]
[1753488195552,0.1344,3721.2,3721.1,0.55]
[1753488196262,2.82170517,3721.2,3721.1,0.55]
[1753488196433,5.28270517,3721.2,3721.1,0.55]
[1753488196650,6.23420517,3721.2,3721.1,0.55]
[1753488197744,5.28270517,3721.2,3721.1,0.55]
[1753488198060,5.28270517,3721.2,3720.5,3.12729034]
[1753488198061,6.23422913,3721.2,3720.5,0.9338]
[1753488198216,6.23422913,3721.2,3720.6,0.55]
[1753488198217,2.68754705,3720.9,3720.6,0.55]
[1753488199048,2.68746948,3721.0,3720.6,1.0443]
[1753488199244,3.6389011,3721.1,3720.6,1.0443]
[1753488199446,5.28273346,3721.2,3720.8,0.55]
[1753488199655,5.74873346,3721.2,3720.8,0.55]
[1753488199865,2.68738529,3721.1,3720.8,0.55]
[1753488200414,2.68746192,3721.0,3720.8,0.55]
[1753488200740,5.14652183,3720.9,3720.8,0.55]
[1753488201054,2.459,3720.9,3720.8,0.55]
[1753488201456,5.14652183,3720.9,3720.8,0.55]
[1753488201659,2.459,3720.9,3720.8,0.55]
[1753488202041,5.14652183,3720.9,3720.8,0.55]
[1753488202233,0.1344,3721.2,3721.1,0.55]
[1753488202569,2.5934,3721.2,3720.9,0.55]
[1753488202782,2.5934,3721.2,3721.1,0.55]
[1753488202947,2.459,3721.2,3721.1,0.55]
[1753488203123,2.459,3721.2,3721.1,1.5048]
[1753488204465,0.1344,3721.3,3721.1,1.5048]
[1753488204639,2.458,3721.2,3721.1,1.37071777]
[1753488204835,2.458,3721.2,3721.1,2.32551777]
[1753488205129,2.458,3721.3,3721.1,4.46286563]
[1753488205356,2.458,3721.3,3721.2,0.55]
[1753488205635,2.458,3721.3,3721.2,1.5048]
[1753488206463,2.458,3721.3,3721.1,0.55]
[1753488206655,2.458,3721.3,3721.1,1.0301]
[1753488207572,2.458,3721.3,3721.2,0.4801]
[1753488208164,2.458,3721.3,3721.2,1.5048]
[1753488208342,2.458,3721.3,3721.2,4.6247764]
[1753488208862,2.458,3721.3,3721.2,1.93747123]
[1753488210368,2.458,3721.3,3721.2,1.5048]
[1753488212169,2.458,3721.3,3721.2,0.55]
[1753488212370,0.492,3722.4,3721.3,0.55]
[1753488212540,0.1344,3721.6,3721.3,0.55]
[1753488212873,2.82141633,3721.6,3721.5,0.55]
[1753488213059,2.82141633,3721.6,3721.5,1.0301]
[1753488213240,0.1344,3721.6,3721.5,1.0301]
[1753488213440,2.82141633,3721.6,3721.5,1.0301]
[1753488213662,0.1344,3721.6,3721.2,3.55]
[1753488213862,2.82103115,3722.2,3721.6,0.55]
[1753488214064,5.14265644,3722.1,3721.8,0.55]
[1753488214275,5.14265538,3722.1,3722.0,0.55]
[1753488214643,5.14265538,3722.1,3722.0,1.0301]
[1753488215056,5.14265538,3722.1,3721.8,0.4801]
[1753488215254,5.14265538,3722.1,3722.0,0.55]
[1753488216884,2.68679461,3722.0,3721.6,1.0247]
[1753488217182,2.68679461,3722.0,3721.8,0.55]
[1753488218675,2.68675639,3722.0,3721.8,0.55]
[1753488218886,2.68679975,3721.9,3721.8,0.55]
[1753488221586,3.45074413,3721.7,3721.6,4.15]
[1753488221771,5.90474413,3721.7,3721.6,4.15]
[1753488221973,6.83044413,3721.7,3721.6,4.15]
[1753488224056,6.83044413,3721.7,3720.7,0.4801]
[1753488224057,2.687528,3720.9,3720.7,0.4801]
[1753488224252,2.68750773,3721.0,3720.6,3.0]
[1753488224452,2.68752183,3720.9,3720.8,1.0301]
[1753488224790,2.68746301,3721.0,3720.9,0.55]
[1753488224993,2.68746301,3721.0,3720.9,1.0301]
[1753488230122,2.68746301,3721.0,3720.9,1.5048]
[1753488230434,2.68746301,3721.0,3720.9,1.0301]
[1753488230721,5.14140044,3721.1,3720.9,1.0301]
[1753488232023,2.68744961,3721.0,3720.9,1.0301]
[1753488232319,2.454,3721.1,3721.0,1.0258]
[1753488232617,2.454,3721.1,3721.0,1.4953]
[1753488233126,2.454,3721.1,3721.0,1.0258]
[1753488233295,2.454,3721.1,3721.0,1.4953]
[1753488233494,2.454,3721.1,3721.0,1.95827]
[1753488233695,2.5884,3721.4,3721.1,0.55]
[1753488233923,2.68724176,3721.3,3721.2,1.4953]
[1753488235120,2.68724176,3721.3,3721.2,1.0258]
[1753488235308,2.68724176,3721.3,3721.2,0.55]
[1753488237128,2.68724176,3721.3,3721.2,1.0258]
[1753488239502,2.68724176,3721.3,3721.2,0.55]
[1753488240530,5.27557601,3721.4,3721.2,0.55]